Cogmind - Beta 14 @@@ ROGUE MODE // 2024.10.15 @ 17:21:01 Player: N.W.L Result: Destroyed by G-50 Soldier with Heavy Laser Performance ------------- Evolutions (5) 2500 Regions Visited (11) 2200 Robots Destroyed (143) 715 Value Destroyed (5193) 5193 Prototype IDs (24) 480 Alien Tech Used (0) 0 Bonus (1357) 1357 TOTAL SCORE: 12445 Bonus ------- High Alert Combat Kills 720 Follower Combat Kills 37 Registered with UFD 300 Met Data Miner 300 Cogmind --------- Core Integrity 0/1000 Matter 300/300 Energy 100/100 System Corruption 8% Temperature Cool (18) Movement Core (50) Location -5/Upper Caves Parts ------- > --- POWER (2) -------- (None) > --- PROPULSION (5) --- (None) > --- UTILITY (7) ------ (None) > --- WEAPON (3) ------- (None) > --- INVENTORY (5) ---- Matter Compressor (250) Advanced Reaction Control System Advanced Reaction Control System A0-MCA's Component Scanner IN-MT5's Pitchfork "Insurrection" (18) Peak State ------------ > --- POWER ------------ F-cell Engine Cold Fusion Reactor > --- PROPULSION ------- Enhanced Flexi-carbon Leg Antigrav System Antigrav System Antigrav System > --- UTILITY ---------- Advanced Heat Sink Advanced Heat Sink Large Storage Unit Advanced Terrain Scanner Advanced Terrain Scan Processor Medium Reactive Plating Hacking Suite > --- WEAPON ----------- Heavy Plasma Cannon Compact Ion Cannon IN-MT5's Pitchfork "Insurrection" > --- INVENTORY -------- Improved Coolant Injector Matter Compressor Advanced Sensor Array Matter Filter Improved Thermal Defense Suite Antimissile System A0-MCA's Component Scanner Improved Trap Extractor Long-range Proton Cannon Long-range Missile Launcher Improved Datajack Enhanced Flamer IN-MT5's Pitchfork "Insurrection" Shock Maul Chainsword [Rating: 89] Favorites ----------- Power Cold Fusion Reactor Engine Improved Ion Engine Power Core Fission Core Reactor Cold Fusion Reactor Propulsion Light Treads Treads Light Treads Leg Carbon-fiber Leg Wheel Subdweller Monowheel Hover Unit Antigrav System Flight Unit Flight Unit Utility Large Storage Unit Device Seismic Detector Storage Large Storage Unit Processor Advanced Terrain Scan Processor Hackware Hacking Suite Protection Improved Light Armor Plating Weapon Advanced Beam Cannon Energy Gun Gatling Laser Energy Cannon Advanced Beam Cannon Ballistic Gun Assault Rifle Launcher Rocket Array Special Weapon Enhanced Flamer Impact Weapon Great Maul Slashing Weapon Chainsword Build | -11 -10 -10 -8 -8 -6 -6 -6 -6 -5 -5 -5 ------- Run | Yrd Mat Sub Rec Scr Fac Low Low Dat Pro Fac Upp Slots Evolved 10 | . . . . . 8 . . . . 2 . Power 1 | . . . . . . . . . . 1 . Propulsion 3 | . . . . . 3 . . . . . . Utility 5 | . . . . . 4 . . . . 1 . Weapon 1 | . . . . . 1 . . . . . . Parts Attached 193 | . 14 7 2 8 100 5 4 . 13 38 2 Power 17 | . 3 . 1 . 10 . . . 1 2 . Engine 10 | . 3 . 1 . 5 . . . . 1 . Core 4 | . . . . . 3 . . . 1 . . Reactor 3 | . . . . . 2 . . . . 1 . Propulsion 38 | . 3 3 . 3 19 2 . . 3 5 . Treads 6 | . 3 1 . 2 . . . . . . . Leg 25 | . . . . . 18 2 . . 3 2 . Wheel 2 | . . 2 . . . . . . . . . Hover 3 | . . . . . . . . . . 3 . Flight 2 | . . . . 1 1 . . . . . . Utility 66 | . 3 1 . 1 35 2 . . 3 20 1 Device 36 | . 2 . . 1 18 1 . . 2 11 1 Storage 5 | . 1 1 . . 3 . . . . . . Processor 6 | . . . . . 6 . . . . . . Hackware 3 | . . . . . 1 . . . . 2 . Protection 16 | . . . . . 7 1 . . 1 7 . Artifact . | . . . . . . . . . . . . Weapon 72 | . 5 3 1 4 36 1 4 . 6 11 1 Energy Gun 18 | . . . . . 15 . . . 2 1 . Energy Cannon 21 | . 3 1 1 . 7 1 1 . 3 4 . Ballistic Gun 5 | . 1 1 . 2 1 . . . . . . Ballistic Cannon . | . . . . . . . . . . . . Launcher 9 | . . . . . 6 . 2 . 1 . . Special Weapon 8 | . 1 . . 1 1 . 1 . . 4 . Impact Weapon 9 | . . 1 . 1 6 . . . . 1 . Slashing Weapon 2 | . . . . . . . . . . 1 1 Piercing Weapon . | . . . . . . . . . . . . Special Melee Weapon . | . . . . . . . . . . . . Unidentified Prototypes 13 | . 1 . . . 9 . . . 1 2 . Parts Lost 60 | . 2 1 . 1 20 4 . . 6 24 2 Power 6 | . 2 . . . 2 . . . . 2 . Propulsion 22 | . . 1 . . 6 4 . . 2 9 . Utility 20 | . . . . 1 7 . . . 2 9 1 Weapon 12 | . . . . . 5 . . . 2 4 1 Highest Loss Streak 12 | . 1 1 . 1 3 4 . . 3 12 2 To Critical Strikes . | . . . . . . . . . . . . Average Slot Usage (%) 90 | . 99 99 100 96 79 87 86 86 83 86 15 Engine 7 | . 13 14 14 13 1 . . . . 1 . Reactor 1 | . . . . . . 6 6 6 5 4 . Treads 12 | . 27 26 . 21 . . . . . . . Leg 10 | . . . . . 25 23 20 20 19 14 . Device 14 | . 13 14 14 13 10 16 20 20 22 17 . Storage 9 | . 14 14 14 12 5 6 6 6 6 5 . Processor 4 | . . . . . 9 13 13 13 6 5 4 Protection 1 | . . . . . 3 1 . . 2 5 . Energy Gun 3 | . . . . . 6 13 13 13 10 . . Energy Cannon 12 | . 10 27 28 24 4 4 . . 3 9 . Ballistic Gun 3 | . 17 . . 1 . . . . . . . Peak Build Rating 89 | . 14 17 19 19 68 63 60 59 71 89 20 Average Rating 35 | . 9 14 17 16 49 59 57 59 60 77 12 On Entrance 32 | 6 6 14 15 19 5 63 59 59 59 71 10 Naked Turns 22 | . . . . . 22 . . . . . . Heaviest Build 96 | 13 36 56 56 53 69 50 50 50 65 96 3 Greatest Support 109 | 20 40 40 40 40 83 82 46 46 91 109 3 Greatest Overweight (x) 17 | . . 2 1 17 1 1 1 1 3 4 . Average Overweight (x) . | . . . 1 . . . . 1 . 1 . Largest Inventory Capacity 20 | . 15 20 20 20 15 15 15 15 15 15 5 Average Capacity 15 | . 14 19 20 18 13 15 15 15 15 14 5 Most Carried 20 | . 15 20 20 20 15 15 15 15 15 15 5 Average Carried 14 | . 10 17 19 18 11 13 14 15 14 14 4 Final Capacity 20 | 8 15 20 20 5 15 15 15 15 15 5 5 Final Carried 20 | 6 15 19 20 3 15 14 15 15 13 5 5 Class Distribution -------------------- 58% | Mutant 22% | Scavenger-Skirmisher 9% | Scavenger-Mutant 4% | Tank Dominant Class ---------------- Mutant | -10/Materials Mutant | -10/Subcaves Mutant | -8/Recycling Mutant | -8/Scraptown Mutant | -6/Factory Scavenger-Skirmisher | -6/Lower Caves Scavenger-Skirmisher | -6/Lower Caves Scavenger-Skirmisher | -6/Data Miner Scavenger-Skirmisher | -5/Proximity Caves Scavenger-Skirmisher | -5/Factory Mutant | -5/Upper Caves Resources | -11 -10 -10 -8 -8 -6 -6 -6 -6 -5 -5 -5 ----------- Run | Yrd Mat Sub Rec Scr Fac Low Low Dat Pro Fac Upp Matter Collected 3310 | 200 372 60 20 132 1440 125 330 . 234 376 21 Remotely . | . . . . . . . . . . . . Salvage Created 5847 | . 458 545 211 111 2887 60 131 . 178 1098 168 Parts 277 | . 38 29 9 5 148 . 4 . 9 27 8 Haulers Intercepted 6 | . 2 . . . 4 . . . . . . Recyclers Shooed 5 | . . . . . 4 . . . . 1 . Parts Field Recycled . | . . . . . . . . . . . . Retrieved Matter . | . . . . . . . . . . . . Parts Self-Destructed 27 | . . 7 . 5 . . . . 10 . 5 Prevented 1 | . . . . . . . . . . . 1 Kills | -11 -10 -10 -8 -8 -6 -6 -6 -6 -5 -5 -5 ------- Run | Yrd Mat Sub Rec Scr Fac Low Low Dat Pro Fac Upp Combat Hostiles Destroyed 104 | . 9 11 1 . 49 1 8 . 9 12 4 Melee 8 | . . . . . 3 . . . . 1 4 Guns 27 | . 8 . . . 15 . . . 4 . . Cannons 33 | . 1 10 1 . 13 . . . . 8 . AOE 25 | . . . . . 13 . 7 . 5 . . Classes Destroyed 17 | . 5 2 1 . 8 . 1 . . . . Worker 13 | . 2 . . . 11 . . . . . . Builder 6 | . . . . . 6 . . . . . . Tunneler 3 | . . . . . 2 . . . . 1 . Hauler 6 | . 2 . . . 4 . . . . . . Recycler 5 | . . . 2 . 1 . . . . 2 . Operator 1 | . . . . . 1 . . . . . . Watcher 5 | . 2 . . . 1 . . . . 2 . Swarmer 27 | . 3 . . . 10 . 7 . 5 . 2 Grunt 27 | . 6 2 . . 12 . . . 2 4 1 Brawler 3 | . . . . . 3 . . . . . . Duelist 2 | . . . . . 1 . . . . . 1 Sentry 14 | . . 1 1 . 9 . . . . 3 . Hunter 9 | . . . . . 6 1 . . 1 1 . Programmer 11 | . . . . . 7 . . . . 4 . Behemoth 2 | . . . . . 1 . . . 1 . . Subdweller 8 | . . 8 . . . . . . . . . Mutant 1 | . . . . . . . 1 . . . . Best Kill Streak 11 | . 3 3 3 . 11 1 4 . 5 2 4 Combat Bots Only 6 | . 3 3 1 . 6 1 4 . 5 2 4 Max Kills in Single Turn 7 | . 1 1 1 . 7 1 4 . 3 1 1 Gunslinging . | . . . . . . . . . . . . Exploded 4 | . . . . . 4 . 4 . 3 . . Melee 1 | . . . . . 1 . . . . 1 1 Uniques/NPCs Destroyed . | . . . . . . . . . . . . Combat | -11 -10 -10 -8 -8 -6 -6 -6 -6 -5 -5 -5 -------- Run | Yrd Mat Sub Rec Scr Fac Low Low Dat Pro Fac Upp Hostile Shots Fired 908 | . 59 37 . 4 499 15 5 . 62 192 35 Missed 293 | . 19 12 . 3 179 3 2 . 20 45 10 Damage Taken 9708 | . 549 552 . 65 3862 207 46 . 813 3030 584 Core 2072 | . 95 120 . 17 660 18 17 . 145 503 497 Absorbed by Shields 24 | . . . . . 24 . . . . . . Ignored by Resistances 212 | . . . . . . . . . . 212 . Regen/Repaired (Parts) 322 | . 124 . . . 198 . . . . . . Core Remaining (%) 36 | 100 . . . 7 . . . . 1 . . Volleys Fired 350 | . 71 53 4 8 121 11 4 . 15 63 . Largest 3 | . 2 2 2 2 3 3 3 . 3 3 . Hottest 270 | . 136 136 136 46 218 239 239 . 255 270 . Shots Fired 700 | . 135 106 8 16 242 21 7 . 32 133 . Gun 310 | . 122 . . 16 126 11 3 . 14 18 . Cannon 340 | . 6 106 8 . 106 10 2 . 11 91 . Launcher 18 | . . . . . 9 . 2 . 7 . . Special 32 | . 7 . . . 1 . . . . 24 . Kinetic 144 | . 122 . . 16 6 . . . . . . Thermal 536 | . 13 106 8 . 227 21 5 . 25 131 . Explosive 18 | . . . . . 9 . 2 . 7 . . Electromagnetic . | . . . . . . . . . . . . Piercing 2 | . . . . . . . . . . 2 . Robot Hit Streak 21 | . 9 8 2 2 21 12 2 . 12 13 . Robot Miss Streak 5 | . 4 3 2 1 5 3 3 . 3 4 . Penetration Max . | . . . . . . . . . . . . Secondary Targets . | . . . . . . . . . . . . Shots Hit Robots 446 | . 65 45 3 6 195 11 3 . 17 95 6 Core Hits 276 | . 30 19 3 3 150 1 12 . 19 34 5 Critical Kills 10 | . . 1 . . 5 . 1 . . 3 . Critical Parts Destroyed 9 | . 1 . . . 8 . . . . . . Critical Strikes 27 | . 1 1 . . 14 . 1 . 1 8 1 Burn 6 | . . . . . 1 . . . 1 4 . Meltdown 5 | . . 1 . . 1 . 1 . . 2 . Destroy 1 | . 1 . . . . . . . . . . Smash 13 | . . . . . 12 . . . . 1 . Sever 1 | . . . . . . . . . . . 1 Impale 1 | . . . . . . . . . . 1 . Melee Attacks 95 | . . 3 . 10 60 . . . . 5 17 Impact 78 | . . 3 . 10 60 . . . . 5 . Slashing 17 | . . . . . . . . . . . 17 Piercing . | . . . . . . . . . . . . Sneak Attacks 8 | . . . . . 8 . . . . . . Combat Hostiles . | . . . . . . . . . . . . Follow-up Attacks . | . . . . . . . . . . . . Damage Inflicted 14874 | . 762 948 62 78 8062 269 556 . 1473 2463 201 Guns 3716 | . 648 . . 78 2362 181 19 . 170 258 . Cannons 4747 | . 66 948 62 . 1534 88 26 . 133 1890 . Explosions 3885 | . . . . . 2204 . 511 . 1170 . . Melee 2173 | . . . . . 1911 . . . . 66 196 Ramming 72 | . 24 . . . 39 . . . . 4 5 Kinetic 826 | . 648 . . 78 100 . . . . . . Thermal 7893 | . 90 948 62 . 3808 269 45 . 303 2368 . Explosive 3885 | . . . . . 2204 . 511 . 1170 . . Electromagnetic . | . . . . . . . . . . . . Impact 1977 | . . . . . 1911 . . . . 66 . Slashing 196 | . . . . . . . . . . . 196 Piercing 25 | . . . . . . . . . . 25 . Highest Corruption 8 | . . . . 5 7 7 7 7 7 4 8 Average Corruption 4 | . . . . 5 2 7 7 7 7 1 4 Corruption Purged 10 | . . . . . 3 . . . . 7 . Corruption Blocked . | . . . . . . . . . . . . Effects 108 | . . . . . 33 22 18 3 22 7 3 Message Errors 26 | . . . . . 8 5 6 . 7 . . Matter Fused 33 | . . . . . 15 3 7 1 4 1 2 Heat Flow Errors 12 | . . . . . 1 4 1 1 3 1 1 Energy Discharges 7 | . . . . . 3 . 1 . 3 . . Parts Fused 2 | . . . . . . . . . 1 1 . Data Loss (minor) 13 | . . . . . 4 3 . 1 2 3 . Data Loss (major) 5 | . . . . . 1 3 . . . 1 . Misfires 4 | . . . . . . 1 1 . 2 . . Alerts 4 | . . . . . 1 2 1 . . . . Weapon Failures 2 | . . . . . . 1 1 . . . . Overload Shots . | . . . . . . . . . . . . Overflow Damage 960 | . 4 . . . 793 . 34 . 64 65 . Projectiles 95 | . 4 . . . 25 . . . 1 65 . Explosions 166 | . . . . . 69 . 34 . 63 . . Melee 699 | . . . . . 699 . . . . . . Knockbacks 7 | . . . . . 7 . . . . . . Impact 7 | . . . . . 7 . . . . . . Kinetic . | . . . . . . . . . . . . Secondary . | . . . . . . . . . . . . Self-Inflicted Damage 89 | . . . . . 50 . . . 37 . 2 Shots 4 | . . . . . 2 . . . 2 . . Rammed 9 | . 7 . . . . . . . . . 2 Targets Rammed 12 | . 7 . . . 2 . . . . 1 2 Kicked 3 | . . . . . 2 . . . . 1 . Crushed . | . . . . . . . . . . . . Highest Temperature 527 | . 156 180 234 52 244 307 228 77 477 527 112 Average Temperature 73 | . 40 43 99 28 52 137 82 51 188 127 74 Received Heat Transfer 1806 | . 240 30 . . 672 . . . 108 612 144 Effects 15 | . . . 1 . . . . . 4 10 . Shutdowns 2 | . . . . . . . . . . 2 . Energy Bleed 2 | . . . 1 . . . . . . 1 . Interference 8 | . . . . . . . . . 3 5 . Matter Decay 1 | . . . . . . . . . . 1 . Short Circuit 1 | . . . . . . . . . . 1 . Damage (minor) 1 | . . . . . . . . . 1 . . Siege Activations . | . . . . . . . . . . . . Robots Corrupted 8 | . . . . . 8 . . . . . . Combat Hostiles 5 | . . . . . 5 . . . . . . Parts Fried 10 | . . . . . 10 . . . . . . Impact Corruptions 24 | . . . . . 24 . . . . . . Robots Melted 9 | . . 1 . . 1 1 1 . . 5 . Combat Hostiles 6 | . . 1 . . . 1 1 . . 3 . Parts Melted 47 | . . 4 . . 14 4 1 . 2 22 . Heat Transferred 14998 | . 161 1702 111 . 6725 472 74 . 584 5169 . Parts Sabotaged 4 | . . . . . 4 . . . . . . Parts Stolen . | . . . . . . . . . . . . Parts Stripped . | . . . . . . . . . . . . Power Chain Reactions . | . . . . . . . . . . . . Alert | -11 -10 -10 -8 -8 -6 -6 -6 -6 -5 -5 -5 ------- Run | Yrd Mat Sub Rec Scr Fac Low Low Dat Pro Fac Upp Peak Influence 1296 | . 256 . 37 . 1296 . . . . 294 . Initial 114 | . . . 7 . . . . . . 114 . Average 256 | . 47 . 35 . 479 . . . . 105 . Maximum Alert Level 4 | . 1 . . . 4 . . . . 1 . Low Security (%) 71 | . 96 . 100 . 45 . . . . 88 . Level 1 8 | . 3 . . . 10 . . . . 11 . Level 2 5 | . . . . . 12 . . . . . . Level 3 4 | . . . . . 10 . . . . . . Level 4 9 | . . . . . 21 . . . . . . Level 5 . | . . . . . . . . . . . . High Security . | . . . . . . . . . . . . Max Security . | . . . . . . . . . . . . Squads Dispatched 29 | . 3 . . . 17 . . . . 9 . Investigation 6 | . 3 . . . 2 . . . . 1 . Extermination 11 | . . . . . 8 . . . . 3 . Reinforcement 4 | . . . . . 2 . . . . 2 . Assault 2 | . . . . . 2 . . . . . . Garrison 6 | . . . . . 3 . . . . 3 . Intercept . | . . . . . . . . . . . . Searches Triggered . | . . . . . . . . . . . . Construction Impeded . | . . . . . . . . . . . . Haulers Reinforced 2 | . . . . . 2 . . . . . . Active Scanning Responses . | . . . . . . . . . . . . Cargo Convoy Interrupts 1 | . . . . . . . . . . 1 . Stealth | -11 -10 -10 -8 -8 -6 -6 -6 -6 -5 -5 -5 --------- Run | Yrd Mat Sub Rec Scr Fac Low Low Dat Pro Fac Upp Distress Signals 3 | . . . . . 2 . . . . 1 . Communications Jammed 12 | . . . . . 12 . . . . . . Distress Signals 12 | . . . . . 12 . . . . . . Times Spotted 174 | . 17 18 . 4 74 1 8 . 14 24 14 Peak Tracking Total 12 | . 3 5 . 5 9 1 4 . 5 5 12 Tactical Retreats 14 | . 2 2 . . 6 . . . . 2 2 Traps | -11 -10 -10 -8 -8 -6 -6 -6 -6 -5 -5 -5 ------- Run | Yrd Mat Sub Rec Scr Fac Low Low Dat Pro Fac Upp Traps Triggered 5 | . 2 1 . . 2 . . . . . . Indirectly . | . . . . . . . . . . . . Trap Hack Attempts . | . . . . . . . . . . . . Triggered . | . . . . . . . . . . . . Disarmed . | . . . . . . . . . . . . Reprogrammed . | . . . . . . . . . . . . Reused 1 | . . . . . 1 . . . . . . Traps Extracted . | . . . . . . . . . . . . Installed 1 | . . . . . 1 . . . . . . Triggered 3 | . . . . . 1 . . . . 1 1 Most Traps Carried 1 | . . 1 1 1 1 . . . . . . Machines | -11 -10 -10 -8 -8 -6 -6 -6 -6 -5 -5 -5 ---------- Run | Yrd Mat Sub Rec Scr Fac Low Low Dat Pro Fac Upp Machines Disabled 11 | . . . . 3 4 . 1 . . 3 . Max in Single Turn 1 | . . . . 1 1 . 1 . . 1 . Garrison Access 1 | . . . . . 1 . . . . . . Machines Repaired . | . . . . . . . . . . . . Machines Dismantled . | . . . . . . . . . . . . Machines Sabotaged . | . . . . . . . . . . . . Overloaded Fab Kills . | . . . . . . . . . . . . Hacking | -11 -10 -10 -8 -8 -6 -6 -6 -6 -5 -5 -5 --------- Run | Yrd Mat Sub Rec Scr Fac Low Low Dat Pro Fac Upp Machines Accessed 40 | . 11 . 1 1 18 . 1 3 . 4 1 Terminals 21 | . 8 . . . 12 . . . . 1 . Fabricators 4 | . . . . . 2 . . . . 2 . Repair Stations 3 | . 1 . . . 2 . . . . . . Recycling Units 5 | . 2 . 1 . 1 . . . . 1 . Scanalyzers . | . . . . . . . . . . . . Garrison Access 1 | . . . . . 1 . . . . . . Total Hacks 127 | . 28 . 2 7 58 . 1 22 . 8 1 Successful 80 | . 15 . 1 7 27 . 1 22 . 6 1 Failed 47 | . 13 . 1 . 31 . . . . 2 . Catastrophic 11 | . 5 . . . 6 . . . . . . Database Lockouts . | . . . . . . . . . . . . Manual 49 | . 20 . . . 28 . . . . 1 . Terminals 61 | . 23 . . . 36 . . . . 2 . Fabricators 12 | . . . . . 8 . . . . 4 . Repair Stations 10 | . 2 . . . 8 . . . . . . Recycling Units 10 | . 3 . 2 . 3 . . . . 2 . Scanalyzers . | . . . . . . . . . . . . Garrison Access 3 | . . . . . 3 . . . . . . Terminal Hacks 41 | . 4 . . 7 4 . 1 22 . 2 1 Record 2 | . . . . . . . . 2 . . . Part Schematic 12 | . . . . . . . . 12 . . . Robot Schematic 5 | . . . . . . . . 5 . . . Robot Analysis 11 | . 3 . . 7 1 . . . . . . Prototype ID Bank 3 | . . . . . . . . 3 . . . Open Door 2 | . . . . . . . 1 . . . 1 Branch Access Points 1 | . . . . . 1 . . . . . . Terminal Index 1 | . 1 . . . . . . . . . . Fabricator Index 1 | . . . . . . . . . . 1 . Unreport Threat 1 | . . . . . . . . . . 1 . Locate Traps 1 | . . . . . 1 . . . . . . Zone Layout 1 | . . . . . 1 . . . . . . Fabricator Hacks 7 | . . . . . 5 . . . . 2 . Network Status 1 | . . . . . 1 . . . . . . Load Schematic 3 | . . . . . 2 . . . . 1 . Build 3 | . . . . . 2 . . . . 1 . Repair Station Hacks 8 | . 2 . . . 6 . . . . . . Scan Component 4 | . 1 . . . 3 . . . . . . Repair 4 | . 1 . . . 3 . . . . . . Recycling Unit Hacks 3 | . 1 . 1 . . . . . . 1 . Retrieve Components 3 | . 1 . 1 . . . . . . 1 . Scanalyzer . | . . . . . . . . . . . . Garrison Access Hacks 1 | . . . . . 1 . . . . . . Seal Access 1 | . . . . . 1 . . . . . . Unauthorized Hacks 19 | . 8 . . . 11 . . . . . . Terminals 15 | . 7 . . . 8 . . . . . . Assimilate 1 | . . . . . 1 . . . . . . Botnet 1 | . . . . . 1 . . . . . . Operators 2 | . 1 . . . 1 . . . . . . Skim 11 | . 6 . . . 5 . . . . . . Fabricators 2 | . . . . . 2 . . . . . . Prioritize 2 | . . . . . 2 . . . . . . Repair Stations 1 | . . . . . 1 . . . . . . Mechanics 1 | . . . . . 1 . . . . . . Recycling Units 1 | . 1 . . . . . . . . . . Tunnel 1 | . 1 . . . . . . . . . . Scanalyzers . | . . . . . . . . . . . . Garrison Access . | . . . . . . . . . . . . Data Cores Recovered 1 | . . . . . 1 . . . . . . Used . | . . . . . . . . . . . . Hacking Detections 30 | . 11 . . . 16 . . . . 3 . Full Trace Events 4 | . 1 . . . 2 . . . . 1 . Feedback Events . | . . . . . . . . . . . . Feedback Blocked . | . . . . . . . . . . . . Robot Schematics Acquired 5 | . . . . . . . . 5 . . . Robots Built . | . . . . . . . . . . . . Authchips . | . . . . . . . . . . . . Time . | . . . . . . . . . . . . Total Robot Build Rating . | . . . . . . . . . . . . Part Schematics Acquired 13 | . . . . 1 . . . 12 . . . Parts Built 2 | . . . . . 1 . . . . 1 . Authchips . | . . . . . . . . . . . . Time 304 | . . . . . 152 . . . . 152 . Total Part Build Rating 10 | . . . . . 5 . . . . 5 . Parts Repaired 4 | . 1 . . . 3 . . . . . . Time 147 | . 26 . . . 121 . . . . . . Parts Recycled . | . . . . . . . . . . . . Recycled Matter . | . . . . . . . . . . . . Retrieved Matter . | . . . . . . . . . . . . Retrieved Components 15 | . 10 . 3 . . . . . . 2 . Parts Scanalyzed . | . . . . . . . . . . . . Part Schematics Acquired . | . . . . . . . . . . . . Parts Damaged . | . . . . . . . . . . . . Bothacking | -11 -10 -10 -8 -8 -6 -6 -6 -6 -5 -5 -5 ------------ Run | Yrd Mat Sub Rec Scr Fac Low Low Dat Pro Fac Upp Used RIF Installer . | . . . . . . . . . . . . Robots Hacked . | . . . . . . . . . . . . Non-combat . | . . . . . . . . . . . . Combat . | . . . . . . . . . . . . Robot Hacks Applied . | . . . . . . . . . . . . Relay Couplers Released . | . . . . . . . . . . . . Fabnet Peak Effective % . | . . . . . . . . . . . . Robots Rewired . | . . . . . . . . . . . . Allies Hacked . | . . . . . . . . . . . . Hacks Repelled . | . . . . . . . . . . . . Allies | -11 -10 -10 -8 -8 -6 -6 -6 -6 -5 -5 -5 -------- Run | Yrd Mat Sub Rec Scr Fac Low Low Dat Pro Fac Upp Total Allies 2 | . . . . . 1 . . . 1 . . Largest Group 1 | . . . . . 1 . . . 1 . . Highest-Rated Group 96 | . . . . . 26 . . . 96 . . Highest-Rated Ally 96 | . . . . . 26 . . . 96 . . Total Orders 3 | . . . . . 3 . . . . . . STAY 2 | . . . . . 2 . . . . . . FOLLOW 1 | . . . . . 1 . . . . . . Ally Attacks 9 | . . . . . . . . . 9 . . Total Damage 278 | . . . . . . . . . 278 . . Kills 1 | . . . . . . . . . 1 . . Allies Corrupted . | . . . . . . . . . . . . Allies Melted 1 | . . . . . . . . . 1 . . Intel | -11 -10 -10 -8 -8 -6 -6 -6 -6 -5 -5 -5 ------- Run | Yrd Mat Sub Rec Scr Fac Low Low Dat Pro Fac Upp Robot Analysis Total 11 | . 3 . . 7 1 . . . . . . Derelict Logs Recovered 8 | . . . . 3 . 2 1 . 2 . . Drone Launches . | . . . . . . . . . . . . Drone Recoveries . | . . . . . . . . . . . . Exploration | -11 -10 -10 -8 -8 -6 -6 -6 -6 -5 -5 -5 ------------- Run | Yrd Mat Sub Rec Scr Fac Low Low Dat Pro Fac Upp Turns Passed 15394 | . 2641 2359 89 2652 3647 797 633 143 722 1633 78 Spaces Moved 7661 | 1 1185 632 53 1570 2126 427 418 76 390 724 59 Core 130 | . . . . 12 56 . . . . 3 59 Treads 2594 | . 1178 558 . 858 . . . . . . . Legs 3753 | 1 7 . . . 1978 427 418 76 390 456 . Wheels 275 | . . 74 53 148 . . . . . . . Hover 265 | . . . . . . . . . . 265 . Flight 644 | . . . . 552 92 . . . . . . Fastest Speed 34 | 120 120 120 120 40 34 114 120 190 120 50 50 Average Speed 150 | 120 159 212 120 164 108 166 141 190 165 169 50 Slowest Speed 900 | 120 160 240 120 900 190 190 190 190 330 306 50 Overloaded Moves . | . . . . . . . . . . . . Propulsion Burnouts . | . . . . . . . . . . . . Robots Hopped . | . . . . . . . . . . . . Cave-ins Triggered 2 | . . . . 1 . . . . . . 1 Exploration Rate (%) 45 | 2 98 39 10 79 48 63 53 68 54 16 10 Regions Visited 11 Branch Regions 8 Pre-discovered Areas 6 | . 1 . . . 3 1 . 1 . . . Known Exits Taken 5 | . . . . 1 1 1 . . 1 1 . Unknown Exits Taken 6 | 1 1 1 1 . . . 1 1 . . . Scrap Searched 15 | . . 2 . 3 . 2 5 . 3 . . Spaces Dug 103 | . 3 7 . 6 39 2 30 . 10 . 6 Terrain Destroyed 353 | . 6 9 . 6 135 5 62 . 107 17 6 Melee 25 | . . 1 . 6 12 . . . . . 6 Projectile 49 | . 6 8 . . 10 5 . . 3 17 . AOE 279 | . . . . . 113 . 62 . 104 . . Terrain Rammed . | . . . . . . . . . . . . Walls Destroyed . | . . . . . . . . . . . . Machines Disabled . | . . . . . . . . . . . . Actions | -11 -10 -10 -8 -8 -6 -6 -6 -6 -5 -5 -5 --------- Run | Yrd Mat Sub Rec Scr Fac Low Low Dat Pro Fac Upp Total 10645 | . 1795 1536 70 1616 3115 496 449 75 431 979 83 Wait 2145 | . 483 828 10 . 621 52 18 . 9 124 . Move 7650 | . 1184 631 52 1569 2125 426 417 75 389 723 59 Hop . | . . . . . . . . . . . . Pick Up 82 | . 20 8 1 6 33 1 3 . 2 7 1 Fast Attach 94 | . 6 2 . 2 57 1 2 . 6 17 1 Attach 45 | . 4 1 . 4 20 3 . . 4 8 1 Detach 19 | . 1 . . . 10 1 . . . 6 1 Swap 54 | . 4 4 2 2 23 1 2 . 3 13 . Drop 94 | . 15 6 1 15 38 . 3 . 3 12 1 Fire 350 | . 71 53 4 8 121 11 4 . 15 63 . Melee 95 | . . 3 . 10 60 . . . . 5 17 Ram 2 | . . . . . . . . . . . 2 Kick 3 | . . . . . 2 . . . . 1 . Crush 7 | . 7 . . . . . . . . . . Escape Stasis 4 | . . . . . 4 . . . . . . Rewire . | . . . . . . . . . . . . Trap 1 | . . . . . 1 . . . . . . Miscellaneous . | . . . . . . . . . . . . Route ------- -11/Scrapyard -10/Materials (discovered 5 exits: *Mat x3 / [*Min] / [*Sub]) -10/Subcaves (discovered 2 exits: [*Mat] / *Rec) -8/Recycling (discovered 2 exits: Fac / *Scr) -8/Scraptown -6/Factory (discovered 6 exits: Fac x4 / *Low x2) -6/Lower Caves -6/Lower Caves (discovered 2 exits: Fac / *Dat) -6/Data Miner -5/Proximity Caves -5/Factory (discovered 3 exits: *Upp x2 / Ext) -5/Upper Caves History --------- Turn | Location | Event 1 | -11/Scrapyard | Discovered new exit (range 0) 1 | -11/Scrapyard | Entered Materials 308 | -10/Materials | Build established: Mutant 983 | -10/Materials | Discovered new exit (range 9) 1059 | -10/Materials | Discovered new exit (range 5) 1256 | -10/Materials | Repaired Lgt. Treads 1264 | -10/Materials | Discovered new exit (range 3) 1656 | -10/Materials | Discovered new exit (range 9) 1707 | -10/Materials | Discovered new exit (range 16) 1836 | -10/Materials | Learned 4 Recycling zone layouts 1925 | -10/Materials | Learned 4 Subcaves zone layouts 1955 | -10/Materials | Learned 2 Storage zone layouts 1976 | -10/Materials | Learned Storage trap positions 1987 | -10/Materials | Identified exit to Materials 2009 | -10/Materials | Learned Storage emergency access door positions 2040 | -10/Materials | Learned Storage emergency access door positions 2642 | -10/Materials | Entered Subcaves 3128 | -10/Subcaves | Discovered new exit (range 13) 4127 | -10/Subcaves | Ambushed by Subdwellers from Twisted Machinery 4144 | -10/Subcaves | Core integrity fell below 50% 4241 | -10/Subcaves | A swath of the cavern ceiling suddenly collapsed 4481 | -10/Subcaves | Shifting Twisted Machinery released Sub. Beam Cannon 4502 | -10/Subcaves | Core integrity fell below 20% 4813 | -10/Subcaves | Disturbed a concealed Subdweller 4997 | -10/Subcaves | Discovered new exit (range 3) 5001 | -10/Subcaves | Entered Recycling 5002 | -8/Recycling | Met a Zionite searching for Scraptown 5002 | -8/Recycling | Identified exit to Factory 5062 | -8/Recycling | Scanned before Scraplab entrance 5079 | -8/Recycling | Entered Scraplab 5089 | -8/Recycling | Discovered new exit (range 2) 5090 | -8/Recycling | Entered Scraptown 5335 | -8/Scraptown | Scanned Subdweller tech in exchange for log data 5353 | -8/Scraptown | Learned Factory terminal intel 5371 | -8/Scraptown | Learned 8 Research zone layouts 5749 | -8/Scraptown | Visited Spacefarers 5800 | -8/Scraptown | Visited TADAMA 5965 | -8/Scraptown | Visited UFD Registry 5965 | -8/Scraptown | Registered with UFD as "Fiberhead" 5999 | -8/Scraptown | Visited CR-KLE's Repair Center 6033 | -8/Scraptown | Visited IN-MT5's Study 6066 | -8/Scraptown | Visited The Evicted 6081 | -8/Scraptown | Visited Awakened 6246 | -8/Scraptown | Visited Modified Component R&D 6333 | -8/Scraptown | Visited A0-MCA Data Center 6373 | -8/Scraptown | Visited Scrapoid Pod Storage 6407 | -8/Scraptown | Visited DA-N13 Charitable Foundation 6436 | -8/Scraptown | Found DCF Scrap (30 items) 6472 | -8/Scraptown | Visited Analyses Database 6522 | -8/Scraptown | Visited Supply Room 6556 | -8/Scraptown | Visited Chapter 10 6642 | -8/Scraptown | Visited Science Testing Area 6678 | -8/Scraptown | Visited Scrap Suit Storage 7598 | -8/Scraptown | Given an A+ rating by A0-MCA 7601 | -8/Scraptown | Found A0-MCA's Component Scanner 7676 | -8/Scraptown | Discovered exit to Factory (range 13) 7694 | -8/Scraptown | Attacked by Scraptown defenders 7710 | -8/Scraptown | Crushed by falling debris 7742 | -8/Scraptown | Entered Factory 7742 | -6/Factory | Evolved 8 slots: Propulsion x3, Utility x4, Weapon x1 7743 | -6/Factory | Loaded intel: 26 terminal locations 7814 | -6/Factory | Discovered new exit (range 16) 8334 | -6/Factory | Released all parts (7) 8365 | -6/Factory | Lost 3 parts (1n1u1w) 8474 | -6/Factory | Repaired Great Maul 8537 | -6/Factory | Repaired Corrupted Gatling Laser 8724 | -6/Factory | Identified exit to Lower Caves 9551 | -6/Factory | Learned location of 1 exit from Lower Caves 9592 | -6/Factory | Learned location of Warlord (-5) 9647 | -6/Factory | Learned 2 Upper Caves zone layouts 9648 | -6/Factory | Loaded intel: 85 trap records 9649 | -6/Factory | Learned location of Proximity Caves (-4) 9650 | -6/Factory | Identified exit to Factory 9659 | -6/Factory | Build established: Tank 9680 | -6/Factory | Learned location of Cetus (-5) 9719 | -6/Factory | Garrison activated, responded to threat 9900 | -6/Factory | Repaired Gatling Laser 10034 | -6/Factory | Spotted B-75 Beast 10063 | -6/Factory | Found Prototype Launcher 10063 | -6/Factory | Identified Rocket Array 10269 | -6/Factory | Core integrity fell below 50% 10299 | -6/Factory | Lost 3 parts (1p2n) 10323 | -6/Factory | Destroyed B-75 Beast 10439 | -6/Factory | Fabricated IN-MT5's Pitchfork "Insurrection"? 10542 | -6/Factory | First assault squad dispatched 10671 | -6/Factory | Build established: Scavenger-Mutant 11389 | -6/Factory | Entered Lower Caves 11390 | -6/Lower Caves | Identified exit to Lower Caves 11497 | -6/Lower Caves | Learned location of Extension (-5) 11637 | -6/Lower Caves | Lost 4 parts (4n) 11885 | -6/Lower Caves | Build established: Scavenger-Skirmisher 12186 | -6/Lower Caves | Entered another Lower Caves area 12256 | -6/Lower Caves | Attacked by a delusional Derelict stockpiling parts 12325 | -6/Lower Caves | Discovered exit to Factory (range 15) 12619 | -6/Lower Caves | Core integrity fell below 20% 12661 | -6/Lower Caves | Discovered new exit (range 19) 12819 | -6/Lower Caves | Entered Data Miner 12819 | -6/Data Miner | Discovered new exit (range 6) 12856 | -6/Data Miner | Met Data Miner 12892 | -6/Data Miner | Learned location of Section 7 (-3) 12914 | -6/Data Miner | Received God Mode back door access code from Data Miner 12962 | -6/Data Miner | Entered Proximity Caves 12989 | -5/Proximity Caves | Learned Factory trap positions 13155 | -5/Proximity Caves | Learned Factory emergency access door positions 13360 | -5/Proximity Caves | Spotted B-75 Beast 13362 | -5/Proximity Caves | Escorted by Enhanced Grunt 13370 | -5/Proximity Caves | Destroyed B-75 Beast 13490 | -5/Proximity Caves | Lost 3 parts (1n1u1w) 13582 | -5/Proximity Caves | Found DCF Scrap (13 items) 13663 | -5/Proximity Caves | Discovered exit to Factory (range 13) 13684 | -5/Proximity Caves | Entered Factory 13684 | -5/Factory | Evolved 2 slots: Power x1, Utility x1 13685 | -5/Factory | Identified exit to Upper Caves 13685 | -5/Factory | Identified exit to Extension 13686 | -5/Factory | Loaded intel: 122 trap records 13932 | -5/Factory | Fabricated IN-MT5's Pitchfork "Insurrection" (x1) 14034 | -5/Factory | Garrison activated, responded to threat 14066 | -5/Factory | Lost 5 parts (2n2u1w) 14839 | -5/Factory | Cargo convoy interrupted 15317 | -5/Factory | Core integrity fell below 50% 15317 | -5/Factory | Entered Upper Caves 15347 | -5/Upper Caves | Lost 12 parts (1p4n5u2w) 15354 | -5/Upper Caves | Attracted the attention of an 0b10 outpost 15380 | -5/Upper Caves | Crushed by falling debris 15391 | -5/Upper Caves | Core integrity fell below 20% 15395 | -5/Upper Caves | Destroyed by G-50 Soldier with Heavy Laser Last Messages --------------- 15376_ G-50 Soldier Lgt. Angular Momentum Engine severed. 15380_ The unstable cave ceiling collapses. 15380_ Crushed by falling debris. 15380_ Adv. Terrain Scan Processor destroyed. 15380_ System corrupted by crushing effect (+4). 15384_ Core Shielding fries itself beyond repair. 15385_ Critical hit (Burn: +37). 15388_ G-50 Soldier destroyed. 15390_ System corrupted: Matter fused (-7). 15390_ Slug penetrates Earth. 15394_ The unstable cave ceiling collapses. 15394_ Y-72 Warden crushed by falling debris. 15394_ Carbon-fiber Leg crushed. 15394_ Slammed into L-41 Fighter. 15395_ Acquired 21 matter. 15395_ The unstable cave ceiling collapses. 15395_ Y-72 Warden crushed by falling debris. 15395_ Chainsword destroyed. 15395_ Hacking Suite severed. 15395_ Slammed into G-50 Soldier. Map ----- +----------------------------------------------------+ | ?????????????????????????????????????????????????? | | ?????????????????????????????????????????????????? | | ?????????????????????????????????????????????????? | | ?????????????????????????????????????????????????? | | ?????????????????????????????????????????????????? | | ????????????????????????????????????######???????? | | ????????????????????????????????????#X ##??????? | | ????????????????????????????????????## #/!#??????? | | ?????????????????????????????????????# # !#??????? | | ??????????????????????????????????#### ####??????? | | ????????????????????????????????### ## ######???? | | ??????????????????###??????????## # ### ##??? | | ???????????????#### #######???##"## ### ##?? | | ??????????????## ## #??## #### ## ### | | ????????? ???# ## #?##"##??## | | ???????? ## #### ### ##????## | | ???????? ### #?????### | | ???????# ## #???????## ###### | | ??????? #????????# #????## | | ??????? ### ##??????## ##????## | | ???????# ##### ######## ##????? | | ????????# ## ##?## ##???? | | ????????# ??## #### #???? | | ????????# ????## g ## # ## #? | | ????????? # ???????##glg ### ##### ### # | | ??????????### ?????????##@b##??##### ##### | | ??????????????????????##;###?# ### #??? | | ??????????????????????#Yl #??# #??? | | ??????????????????????#####??## #####??? | | ???????????????????????###????# ###???????#### | | ??????????????????????????????# ?????????????? | | ??????????????????????????????# ???????????????? | | ??????????????????????????????#?????????????????? | | ?????????????????????????????????????????????????? | | ?????????????????????????????????????????????????? | | ?????????????????????????????????????????????????? | | ?????????????????????????????????????????????????? | | ?????????????????????????????????????????????????? | | ?????????????????????????????????????????????????? | | ?????????????????????????????????????????????????? | | ?????????????????????????????????????????????????? | | ?????????????????????????????????????????????????? | | ?????????????????????????????????????????????????? | | ?????????????????????????????????????????????????? | | ?????????????????????????????????????????????????? | | ?????????????????????????????????????????????????? | | ?????????????????????????????????????????????????? | | ?????????????????????????????????????????????????? | | ?????????????????????????????????????????????????? | | ?????????????????????????????????????????????????? | +----------------------------------------------------+ Best States ------------- Heat Dissipation 92 Energy Generation 31 Energy Capacity 600 Matter Stores 300 Matter Capacity 300 Sight Range 16 Robot Scan Range 16 Terrain Scan Range 20 Terrain Scan Density 410 Jamming Range 12 Additional Mass Support 6 Armor Coverage 600 Resistance: KI 30 Evasion (%) 67 Melee Accuracy 10 Recoil Reduction 2 Matter Filtering 30 Offensive Hacking 14 Defensive Hacking 10 Item Schematics ----------------- IN-MT5's Pitchfork "Insurrection" | -8/Scraptown | Archive Combat Drone Bay | -6/Data Miner | Free Mni. Smartbomb Launcher | -6/Data Miner | Free Lgt. Regenerative Plating | -6/Data Miner | Free Enh. Armored Leg | -6/Data Miner | Free Imp. Matter Compressor | -6/Data Miner | Free Adv. Medium Treads | -6/Data Miner | Free Adv. Cryofiber Web | -6/Data Miner | Free Hardcell Cannon | -6/Data Miner | Free Point Defense System | -6/Data Miner | Free Adv. Recalibrator | -6/Data Miner | Free Arm. Heavy Treads | -6/Data Miner | Free Adv. Transmission Jammer | -6/Data Miner | Free Robot Schematics ------------------ R-10 Processor | -6/Data Miner | Free S-27 Virus | -6/Data Miner | Free X-62 Marksman | -6/Data Miner | Free B-60 Warrior | -6/Data Miner | Free O-32 Director | -6/Data Miner | Free Fabricated ------------ IN-MT5's Pitchfork "Insurrection" | x1 | -6/Factory IN-MT5's Pitchfork "Insurrection" | x1 | -5/Factory Alien Tech Used ----------------- None Achievements -------------- None Challenges ------------ None Game ------ Seed WeightFluxLattice Manual? 0 Play Time 01:31:54 Cumulative 333.3 hours Start 2024.10.14 @ 17:12:51 End 2024.10.15 @ 17:21:01 Sessions 3 Manual Loads 0 Difficulty Rogue Special Mode None Game No. 167 Rogue 167 Adventurer 0 Explorer 0 Win Type - Total 9 Types 5/1/3/0/0/0/0/0/0 Lore% 84 Gallery% 87 Achievement% 73 Wizard Run 0 Options --------- Layout 0 ASCII 0 Keyboard 0 Movement Mouse Keybinds 0 Fullscreen 2 Font 12/Smallcaps Map View 83x54 Zoom Use 0% Tactical HUD 1 Map Filters NONE Filters NONE Steam 1 RUN: 89265e09-1150-4f31-be1e-57a991307f71